fUST/lending_fUST_20241215
["ID","MTS","AMOUNT","RATE_DAILY","PERIOD"]
[345463405,1734274235716,-500.0,0.00028219,7]
[345463406,1734274235726,-500.0,0.00028219,7]
[345463407,1734274235735,-239.69246726,0.00028219,7]
[345463408,1734274235744,-634.3,0.00028219,7]
[345463409,1734274235754,-1613.29,0.00028219,7]
[345463410,1734274235763,-500.0,0.00028219,7]
[345463411,1734274235772,-8511.53,0.00028219,2]
[345463412,1734274235782,-420.0,0.00028235,2]
[345463413,1734274235791,-153.16,0.000284,31]
[345463414,1734274235800,-500.0,0.00028493,7]
[345463415,1734274235810,-1573.58,0.00028493,2]
[345463416,1734274235819,-514.2,0.00028493,7]
[345463417,1734274235828,-500.0,0.00028493,7]
[345463418,1734274235837,-500.0,0.00028493,7]
[345463419,1734274235846,-839.86,0.00028493,7]
[345463420,1734274235855,-504.45,0.00028493,7]
[345463421,1734274235864,-500.0,0.00028493,7]
[345463422,1734274235873,-500.0,0.00028493,7]
[345463423,1734274235883,-657.16,0.00028493,7]
[345463424,1734274235892,-500.0,0.00028493,7]
[345463425,1734274235901,-500.0,0.00028493,7]
[345463426,1734274235910,-634.3,0.00028493,7]
[345463427,1734274235919,-645.62771656,0.00028493,7]
[345463428,1734274235928,-1613.29,0.00028493,7]
[345463429,1734274235938,-8511.53,0.00028493,2]
[345463430,1734274235946,-1701.35996288,0.000285,3]
[345463431,1734274235955,-312.055,0.000285,2]
[345463432,1734274235965,-10000.0,0.000285,5]
[345463433,1734274235974,-1028.69,0.000285,2]
[345463434,1734274235983,-376.656264,0.000285,13]
[345463435,1734274235992,-176.09994696,0.00028599,2]
[345463436,1734274236001,-500.0,0.00028611,2]
[345463437,1734274236010,-500.0,0.00028618,2]
[345463438,1734274236019,-500.0,0.00028622,2]
[345463439,1734274236028,-151.0,0.00028636,2]
[345463440,1734274236037,-151.0,0.00028636,2]
[345463441,1734274236046,-500.0,0.00028767,7]
[345463442,1734274236055,-500.0,0.00028767,9]
[345463443,1734274236065,-1573.58,0.00028767,2]
[345463444,1734274236074,-490.41870462,0.00028767,7]
[345463445,1734274236083,-500.0,0.00028767,7]
[345463446,1734274236092,-839.86,0.00028767,7]
[345463447,1734274236101,-504.45,0.00028767,7]
[345463448,1734274236111,-500.0,0.00028767,7]
[345463449,1734274236120,-500.0,0.00028767,7]
[345463450,1734274236128,-657.16,0.00028767,7]
[345463451,1734274236138,-500.0,0.00028767,7]
[345463452,1734274236148,-500.0,0.00028767,7]
[345463453,1734274236157,-634.3,0.00028767,7]
[345463454,1734274236168,-1613.29,0.00028767,7]
[345463455,1734274236178,-8511.53,0.00028767,2]
[345463456,1734274236189,-153.16,0.000288,31]
[345463457,1734274236198,-153.16,0.000288,31]
[345463458,1734274236207,-500.0,0.00028884,2]
[345463459,1734274236216,-222.45,0.000289,2]
[345463460,1734274236231,-303.13943323,0.00029,2]
[345463461,1734274236241,-311.056,0.0002904,7]
[345463462,1734274236250,-500.0,0.00029041,7]
[345463463,1734274236260,-1573.58,0.00029041,2]
[345463464,1734274236271,-500.0,0.00029041,7]
[345463465,1734274236281,-839.86,0.00029041,7]
[345463466,1734274236291,-504.45,0.00029041,7]
[345463467,1734274236300,-500.0,0.00029041,7]
[345463468,1734274236310,-500.0,0.00029041,7]
[345463469,1734274236320,-657.16,0.00029041,7]
[345463470,1734274236329,-500.0,0.00029041,7]
[345463471,1734274236338,-500.0,0.00029041,7]
[345463472,1734274236348,-634.3,0.00029041,7]
[345463473,1734274236357,-1613.29,0.00029041,7]
[345463474,1734274236366,-8511.53,0.00029041,2]
[345463475,1734274236376,-500.0,0.00029048,2]
[345463476,1734274236385,-300.0,0.000292,2]
[345463477,1734274236394,-153.16,0.000292,31]
[345463478,1734274236404,-153.16,0.000292,31]
[345463479,1734274236413,-176.09994696,0.00029249,2]
[345463480,1734274236423,-303.13943323,0.0002929,2]
[345463481,1734274236432,-190.30248809,0.00029315,7]
[345463482,1734274236441,-1573.58,0.00029315,2]
[345463483,1734274236450,-500.0,0.00029315,7]
[345463484,1734274236459,-839.86,0.00029315,7]
[345463485,1734274236468,-504.45,0.00029315,7]
[345463486,1734274236481,-500.0,0.00029315,7]
[345463487,1734274236490,-500.0,0.00029315,7]
[345463488,1734274236499,-657.16,0.00029315,7]
[345463489,1734274236510,-500.0,0.00029315,7]
[345463490,1734274236519,-500.0,0.00029315,7]
[345463491,1734274236528,-634.3,0.00029315,7]
[345463492,1734274236537,-1613.29,0.00029315,7]
[345463493,1734274236546,-8511.53,0.00029315,2]
[345463494,1734274236555,-500.0,0.00029445,2]
[345463495,1734274236565,-151.0,0.000295,12]
[345463496,1734274236574,-303.13943323,0.0002958,2]
[345463497,1734274236583,-1573.58,0.00029589,2]
[345463498,1734274236592,-500.0,0.00029589,7]
[345463499,1734274236602,-839.86,0.00029589,7]
[345463500,1734274236611,-504.45,0.00029589,7]
[345463501,1734274236620,-500.0,0.00029589,7]
[345463502,1734274236629,-500.0,0.00029589,7]
[345463503,1734274236639,-657.16,0.00029589,7]
[345463504,1734274236648,-500.0,0.00029589,7]
[345463505,1734274236657,-500.0,0.00029589,7]
[345463506,1734274236666,-634.3,0.00029589,7]
[345463507,1734274236675,-1613.29,0.00029589,7]
[345463508,1734274236684,-8511.53,0.00029589,2]
[345463509,1734274236694,-500.0,0.00029597,2]
[345463510,1734274236703,-256.7012844,0.00029699,4]
[345463511,1734274236712,-10297.95885299,0.000297,2]
[345463512,1734274236721,-153.16,0.000297,31]
[345463513,1734274236735,-153.16,0.000297,31]
[345463514,1734274236745,-500.0,0.00029759,2]
[345463515,1734274236754,-151.0,0.000298,13]
[345463516,1734274236763,-1573.58,0.00029863,2]
[345463517,1734274236772,-500.0,0.00029863,7]
[345463518,1734274236782,-839.86,0.00029863,7]
[345463519,1734274236794,-504.45,0.00029863,7]
[345463520,1734274236802,-500.0,0.00029863,7]
[345463521,1734274236811,-500.0,0.00029863,7]
[345463522,1734274236820,-657.16,0.00029863,7]
[345463523,1734274236830,-500.0,0.00029863,7]
[345463524,1734274236839,-500.0,0.00029863,7]
[345463525,1734274236848,-634.3,0.00029863,7]
[345463526,1734274236857,-1613.29,0.00029863,7]
[345463527,1734274236866,-303.13943323,0.0002987,2]
[345463528,1734274236875,-176.09994696,0.000299,2]
[345463529,1734274236884,-500.0,0.0002998,2]
[345463530,1734274236894,-973.84217907,0.00029988,2]
[345463531,1734274236903,-2000.0,0.0003,2]
[345463532,1734274236912,-153.9,0.0003,2]
[345463533,1734274236921,-223.0669087,0.0003,30]
[345463534,1734274236930,-1000.00067654,0.0003,30]
[345463535,1734274236940,-10000.0,0.0003,12]
[345463536,1734274236949,-15747.63818408,0.0003,7]
[345463537,1734274236959,-3424.36,0.0003,4]
[345463538,1734274236968,-277.0,0.0003,2]
[345463539,1734274236979,-3038.66282171,0.0003,7]
[345463540,1734274236988,-9167.233961,0.00030028,7]
[345463541,1734274236997,-153.949409,0.0003003,7]
[345463542,1734274237006,-183.63647976,0.00030041,2]
[345463543,1734274237015,-564.50956154,0.00030041,2]
[345463544,1734274237025,-2559.80352039,0.00030042,4]
[345463545,1734274237037,-151.0,0.00030042,7]
[345463546,1734274237046,-151.0,0.00030042,7]
[345463547,1734274237057,-238.263972,0.00030042,7]
[345463548,1734274237066,-151.0,0.00030042,7]
[345463549,1734274237075,-151.0,0.00030042,7]
[345463550,1734274237084,-151.0,0.00030042,7]
[345463551,1734274237094,-151.0,0.00030042,7]
[345463552,1734274237104,-151.0,0.00030042,7]
[345463553,1734274237114,-151.0,0.00030042,7]
[345463554,1734274237125,-151.0,0.00030042,7]
[345463555,1734274237134,-151.0,0.00030042,7]
[345463556,1734274237144,-151.0,0.00030042,7]
[345463557,1734274237153,-151.0,0.00030042,7]
[345463558,1734274237162,-180.173102,0.00030042,7]
[345463559,1734274237172,-151.0,0.00030042,7]
[345463560,1734274237181,-151.0,0.00030042,7]
[345463561,1734274237191,-151.0,0.00030042,7]
[345463562,1734274237200,-151.0,0.00030042,7]
[345463563,1734274237209,-153.424417,0.00030042,7]
[345463564,1734274237221,-154.289276,0.00030042,7]
[345463565,1734274237233,-152.034935,0.00030042,7]
[345463566,1734274237242,-266.451185,0.00030042,7]
[345463567,1734274237251,-151.0,0.00030042,7]
[345463568,1734274237260,-151.0,0.00030042,7]
[345463569,1734274237270,-151.0,0.00030042,7]
[345463570,1734274237279,-296.989304,0.00030042,7]
[345463571,1734274237291,-191.211288,0.00030042,7]
[345463572,1734274237302,-191.211288,0.00030042,7]
[345463573,1734274237313,-191.211288,0.00030042,7]
[345463574,1734274237322,-191.211288,0.00030042,7]
[345463575,1734274237334,-191.211288,0.00030042,7]
[345463576,1734274237344,-191.211288,0.00030042,7]
[345463577,1734274237355,-191.211288,0.00030042,7]
[345463578,1734274237364,-191.211288,0.00030042,7]
[345463579,1734274237373,-191.211288,0.00030042,7]
[345463580,1734274237382,-191.211288,0.00030042,7]
[345463581,1734274237391,-191.211288,0.00030042,7]
[345463582,1734274237400,-191.211288,0.00030042,7]
[345463583,1734274237409,-191.211288,0.00030042,7]
[345463584,1734274237418,-191.211288,0.00030042,7]
[345463585,1734274237427,-191.211288,0.00030042,7]
[345463586,1734274237437,-191.211288,0.00030042,7]
[345463587,1734274237446,-191.211288,0.00030042,7]
[345463588,1734274237455,-191.211288,0.00030042,7]
[345463589,1734274237464,-191.211288,0.00030042,7]
[345463590,1734274237473,-191.211284,0.00030042,7]
[345463591,1734274237484,-151.0,0.00030043,7]
[345463592,1734274237494,-151.0,0.00030043,7]
[345463593,1734274237503,-151.0,0.00030043,7]
[345463594,1734274237513,-151.0,0.00030043,7]
[345463595,1734274237523,-151.0,0.00030043,7]
[345463596,1734274237533,-151.0,0.00030043,7]
[345463597,1734274237543,-151.0,0.00030043,7]
[345463598,1734274237553,-151.0,0.00030043,7]
[345463599,1734274237563,-231.808246,0.00030043,7]
[345463600,1734274237574,-151.0,0.00030043,7]
[345463601,1734274237584,-151.0,0.00030043,7]
[345463602,1734274237593,-196044.43677165,0.00030043,10]
[345463613,1734274238449,-500.0,0.0002767,2]
[345463614,1734274238459,-500.0,0.0002767,2]
[345463615,1734274238469,-500.0,0.0002767,2]
[345463616,1734274238480,-500.0,0.0002767,2]
[345463617,1734274238599,-500.0,0.0002767,2]
[345463618,1734274238610,-389.0500017,0.0002767,2]
[345463619,1734274238623,-110.9499983,0.0002767,2]
[345463620,1734274238633,-500.0,0.0002767,2]
[345463621,1734274238642,-500.0,0.0002767,2]
[345463622,1734274238651,-500.0,0.0002767,2]
[345463623,1734274238660,-500.0,0.0002767,2]
[345463624,1734274238670,-500.0,0.0002767,2]
[345463625,1734274238680,-240.05531174,0.0002767,2]
[345463626,1734274238690,-500.0,0.0002767,2]
[345463627,1734274238699,-500.0,0.0002767,2]
[345463628,1734274238709,-500.0,0.0002767,2]
[345463629,1734274238718,-433.91544334,0.0002767,2]
[345463630,1734274238729,-500.0,0.0002767,2]
[345463631,1734274238740,-421.79979907,0.0002767,2]
[345463632,1734274238749,-500.0,0.0002767,2]
[345463633,1734274238758,-577.89547637,0.0002767,2]
[345463634,1734274238767,-192.19572482,0.0002767,2]
[345463635,1734274238777,-500.0,0.0002767,2]
[345463636,1734274238786,-500.0,0.0002767,2]
[345463637,1734274238796,-500.0,0.0002767,2]
[345463638,1734274238805,-500.0,0.0002767,2]
[345463639,1734274238815,-500.0,0.0002767,2]
[345463640,1734274238824,-603.50817716,0.0002767,2]
[345463641,1734274238833,-500.0,0.0002767,2]
[345463642,1734274238843,-500.0,0.0002767,2]
[345463643,1734274238852,-500.0,0.0002767,2]
[345463644,1734274238861,-500.0,0.0002767,2]
[345463645,1734274238870,-500.0,0.0002767,2]
[345463646,1734274238880,-506.60268182,0.0002767,2]
[345463647,1734274238889,-500.0,0.0002767,2]
[345463648,1734274238899,-500.0,0.0002767,2]
[345463649,1734274238908,-500.0,0.0002767,2]
[345463650,1734274238917,-500.0,0.0002767,2]
[345463651,1734274238926,-500.0,0.0002767,2]
[345463652,1734274238935,-500.0,0.0002767,2]
[345463653,1734274238944,-500.0,0.0002767,2]
[345463654,1734274238953,-500.0,0.0002767,2]
[345463655,1734274238962,-500.0,0.0002767,2]
[345463656,1734274238971,-500.0,0.0002767,2]
[345463657,1734274238982,-500.0,0.0002767,2]
[345463658,1734274238992,-500.0,0.0002767,2]
[345463659,1734274239000,-500.0,0.0002767,2]
[345463660,1734274239009,-500.0,0.0002767,2]
[345463661,1734274239018,-500.0,0.0002767,2]
[345463662,1734274239027,-500.0,0.0002767,2]
[345463663,1734274239036,-500.0,0.0002767,2]
[345463664,1734274239046,-500.0,0.0002767,2]
[345463665,1734274239055,-500.0,0.0002767,2]
[345463666,1734274239064,-500.0,0.0002767,2]
[345463667,1734274239073,-500.0,0.0002767,2]
[345463668,1734274239081,-500.0,0.0002767,2]
[345463669,1734274239091,-296.64717093,0.0002767,2]
[345463670,1734274239100,-223.33282241,0.0002767,2]
[345463671,1734274239109,-500.0,0.0002767,2]
[345463672,1734274239118,-500.0,0.0002767,2]
[345463673,1734274239127,-500.0,0.0002767,2]
[345463674,1734274239136,-500.0,0.0002767,2]
[345463675,1734274239146,-500.0,0.0002767,2]
[345463676,1734274239155,-500.0,0.0002767,2]
[345463677,1734274239164,-500.0,0.0002767,2]
[345463678,1734274239173,-500.0,0.0002767,2]
[345463679,1734274239182,-500.0,0.0002767,2]
[345463680,1734274239191,-500.0,0.0002767,2]
[345463681,1734274239200,-500.0,0.0002767,2]
[345463682,1734274239210,-500.0,0.0002767,2]
[345463683,1734274239221,-500.0,0.0002767,2]
[345463684,1734274239233,-500.0,0.0002767,2]
[345463685,1734274239242,-500.0,0.0002767,2]
[345463686,1734274239251,-500.0,0.0002767,2]
[345463687,1734274239261,-500.0,0.0002767,2]
[345463688,1734274239271,-500.0,0.0002767,2]
[345463689,1734274239280,-500.0,0.0002767,2]
[345463690,1734274239289,-500.0,0.0002767,2]
[345463691,1734274239298,-500.0,0.0002767,2]
[345463692,1734274239307,-500.0,0.0002767,2]
[345463693,1734274239317,-500.0,0.0002767,2]
[345463694,1734274239327,-500.0,0.0002767,2]
[345463695,1734274239336,-500.0,0.0002767,2]
[345463696,1734274239345,-500.0,0.0002767,2]
[345463697,1734274239354,-500.0,0.0002767,2]
[345463698,1734274239363,-303.2495261,0.0002767,2]
[345463699,1734274239373,-8511.53,0.00029863,2]
[345463700,1734274239383,-778871.747544,0.00030043,10]
[345463741,1734274243420,-151.0,0.00030043,7]
[345463742,1734274243430,-44649.00055437,0.00030043,10]
[345463743,1734274243527,-290.294,0.00030043,10]
[345463815,1734274246382,-8883.02081728,0.00030043,10]
[345464565,1734274380114,166.173936,0.00013973,2]
[345464571,1734275245362,254.0,0.00020222,2]
[345464573,1734275313457,166.173936,0.00013973,2]
[345465089,1734275438919,-166.173936,0.00024224,2]
[345465091,1734275438930,-1000.0,0.00025,25]
[345465093,1734275438941,-1000.0,0.00026,26]
[345465095,1734275438955,-509.31,0.000265,7]
[345465097,1734275438967,-231.631074,0.00026673,2]
[345465099,1734275438977,-300.0,0.00026884,2]
[345465102,1734275438987,-12732.0703793,0.00026885,2]
[345465104,1734275438998,-1000.0,0.00027,27]
[345465106,1734275439008,-500.0,0.00027669,7]
[345465108,1734275439018,-500.0,0.00027669,7]
[345465110,1734275439028,-500.0,0.00027669,7]
[345465112,1734275439038,-500.0,0.00027669,7]
[345465114,1734275439049,-5319.71,0.0002767,2]
[345465116,1734275439060,-500.0,0.0002767,7]
[345465118,1734275439071,-500.0,0.0002767,7]
[345465121,1734275439082,-500.0,0.0002767,7]
[345465123,1734275439094,-500.0,0.0002767,7]
[345465125,1734275439106,-228.44,0.0002767,7]
[345465127,1734275439117,-342.65048772,0.0002767,7]
[345465129,1734275439127,-917.92,0.0002767,2]
[345465131,1734275439137,-500.0,0.0002767,7]
[345465133,1734275439147,-500.0,0.0002767,7]
[345465134,1734275439157,-500.0,0.0002767,7]
[345465135,1734275439167,-500.0,0.0002767,7]
[345465136,1734275439178,-500.0,0.0002767,7]
[345465137,1734275439188,-500.0,0.00027943,7]
[345465138,1734275439198,-500.0,0.00027943,7]
[345465139,1734275439210,-500.0,0.00027943,7]
[345465140,1734275439219,-500.0,0.00027943,7]
[345465141,1734275439230,-5319.71,0.00027944,2]
[345465142,1734275439240,-917.92,0.00027944,2]
[345465143,1734275439251,-500.0,0.00027944,7]
[345465144,1734275439262,-500.0,0.00027944,7]
[345465145,1734275439272,-500.0,0.00027944,7]
[345465147,1734275439282,-500.0,0.00027944,7]
[345465149,1734275439294,-500.0,0.00027944,7]
[345465151,1734275439305,-1000.0,0.00028,28]
[345465153,1734275439316,-162.6,0.000282,2]
[345465155,1734275439327,-500.0,0.00028217,7]
[345465157,1734275439337,-369.42769476,0.00028217,7]
[345465159,1734275439347,-500.0,0.00028217,7]
[345465161,1734275439357,-500.0,0.00028217,7]
[345465163,1734275439366,-5319.71,0.00028218,2]
[345465165,1734275439376,-917.92,0.00028218,2]
[345465167,1734275439387,-500.0,0.00028218,7]
[345465169,1734275439398,-500.0,0.00028218,7]
[345465171,1734275439409,-500.0,0.00028218,7]
[345465173,1734275439419,-500.0,0.00028218,7]
[345465175,1734275439429,-500.0,0.00028218,7]
[345465178,1734275439439,-1957.993,0.00028252,2]
[345465180,1734275439449,-500.0,0.00028491,7]
[345465182,1734275439462,-500.0,0.00028491,7]
[345465184,1734275439472,-500.0,0.00028491,7]
[345465186,1734275439483,-5319.71,0.00028492,2]
[345465188,1734275439494,-917.92,0.00028492,2]
[345465190,1734275439505,-941.09,0.00028492,7]
[345465193,1734275439516,-500.0,0.00028492,7]
[345465195,1734275439526,-500.0,0.00028492,7]
[345465197,1734275439536,-500.0,0.00028492,7]
[345465199,1734275439546,-500.0,0.00028492,7]
[345465201,1734275439557,-500.0,0.00028492,7]
[345465203,1734275439568,-5076.50322811,0.00028493,4]
[345465205,1734275439580,-925.83,0.000285,2]
[345465208,1734275439592,-286.394,0.0002854,2]
[345465210,1734275439605,-500.0,0.00028765,7]
[345465212,1734275439617,-500.0,0.00028765,7]
[345465214,1734275439628,-500.0,0.00028765,7]
[345465216,1734275439638,-5319.71,0.00028766,2]
[345465218,1734275439650,-917.92,0.00028766,2]
[345465221,1734275439661,-941.09,0.00028766,7]
[345465223,1734275439672,-500.0,0.00028766,7]
[345465225,1734275439684,-500.0,0.00028766,7]
[345465227,1734275439695,-500.0,0.00028766,7]
[345465229,1734275439705,-500.0,0.00028766,7]
[345465231,1734275439714,-500.0,0.00028766,7]
[345465233,1734275439724,-151.0,0.00028776,2]
[345465235,1734275439733,-290.294,0.00028776,2]
[345465237,1734275439743,-1000.0,0.00029,29]
[345465239,1734275439752,-303.14246574,0.00029,2]
[345465241,1734275439762,-500.0,0.00029039,7]
[345465243,1734275439772,-500.0,0.00029039,7]
[345465245,1734275439783,-500.0,0.00029039,7]
[345465248,1734275439793,-5319.71,0.0002904,2]
[345465250,1734275439804,-917.92,0.0002904,2]
[345465252,1734275439815,-941.09,0.0002904,7]
[345465254,1734275439825,-500.0,0.0002904,7]
[345465256,1734275439836,-500.0,0.0002904,7]
[345465259,1734275439848,-500.0,0.0002904,7]
[345465261,1734275439859,-500.0,0.0002904,7]
[345465263,1734275439870,-500.0,0.0002904,7]
[345465265,1734275439881,-420.0,0.00029068,2]
[345465267,1734275439891,-300.0,0.000292,2]
[345465270,1734275439911,-303.14246574,0.0002929,2]
[345465272,1734275439922,-500.0,0.00029313,7]
[345465274,1734275439933,-458.18024975,0.00029313,7]
[345465276,1734275439943,-500.0,0.00029313,7]
[345465279,1734275439958,-5319.71,0.00029314,2]
[345465281,1734275439968,-917.92,0.00029314,2]
[345465283,1734275439979,-941.09,0.00029314,7]
[345465285,1734275439993,-500.0,0.00029314,7]
[345465288,1734275440004,-500.0,0.00029314,7]
[345465290,1734275440015,-428.71889085,0.00029314,7]
[345465292,1734275440030,-500.0,0.00029314,7]
[345465294,1734275440041,-500.0,0.00029314,7]
[345465297,1734275440052,-500.0,0.00029314,7]
[345465299,1734275440062,-303.14246574,0.0002958,2]
[345465302,1734275440074,-500.0,0.00029587,7]
[345465305,1734275440084,-500.0,0.00029587,7]
[345465307,1734275440095,-5319.71,0.00029588,2]
[345465309,1734275440106,-917.92,0.00029588,2]
[345465311,1734275440117,-941.09,0.00029588,7]
[345465313,1734275440128,-521.27837892,0.00029588,7]
[345465316,1734275440139,-500.0,0.00029588,7]
[345465318,1734275440149,-500.0,0.00029588,7]
[345465320,1734275440160,-500.0,0.00029588,7]
[345465322,1734275440172,-10297.95885299,0.00029723,2]
[345465324,1734275440183,-500.0,0.00029861,7]
[345465326,1734275440193,-500.0,0.00029861,7]
[345465328,1734275440205,-5319.71,0.00029862,2]
[345465330,1734275440216,-917.92,0.00029862,2]
[345465332,1734275440227,-941.09,0.00029862,7]
[345465335,1734275440239,-500.0,0.00029862,7]
[345465337,1734275440249,-500.0,0.00029862,7]
[345465339,1734275440259,-604.7036213,0.00029862,7]
[345465341,1734275440270,-303.14246574,0.0002987,2]
[345465343,1734275440282,-22943.19172663,0.00029999,10]
[345465346,1734275440293,-10000.0,0.0003,15]
[345465348,1734275440303,-606.04514898,0.0003,7]
[345465350,1734275440314,-2000.0,0.0003,2]
[345465353,1734275440325,-999.79380642,0.0003,30]
[345465355,1734275440336,-1000.0,0.0003,120]
[345465357,1734275440346,-246.0,0.0003,2]
[345465359,1734275440358,-2047.0,0.0003,30]
[345465361,1734275440369,-395.15669307,0.00030037,2]
[345465363,1734275440379,-577.89547637,0.00030037,2]
[345465365,1734275440390,-500.0,0.00030037,2]
[345465367,1734275440401,-500.0,0.00030037,2]
[345465370,1734275440411,-421.79979907,0.00030037,2]
[345465372,1734275440423,-500.0,0.00030037,2]
[345465374,1734275440434,-240.05531174,0.00030037,2]
[345465376,1734275440444,-500.0,0.00030037,2]
[345465378,1734275440455,-500.0,0.00030037,2]
[345465380,1734275440465,-500.0,0.00030037,2]
[345465396,1734275440644,-500.0,0.00030037,2]
[345465397,1734275440655,-500.0,0.00030037,2]
[345465398,1734275440664,-500.0,0.00030037,2]
[345465399,1734275440674,-500.0,0.00030037,2]
[345465400,1734275440684,-500.0,0.00030037,2]
[345465401,1734275440693,-281.6757524,0.00030037,2]
[345465402,1734275440704,-500.0,0.00030037,2]
[345465403,1734275440713,-500.0,0.00030037,2]
[345465404,1734275440722,-229.55853536,0.00030037,2]
[345465405,1734275440731,-500.0,0.00030037,2]
[345465406,1734275440740,-500.0,0.00030037,2]
[345465407,1734275440749,-500.0,0.00030037,2]
[345465408,1734275440758,-500.0,0.00030037,2]
[345465409,1734275440767,-500.0,0.00030037,2]
[345465410,1734275440776,-500.0,0.00030037,2]
[345465411,1734275440785,-500.0,0.00030037,2]
[345465412,1734275440795,-342.05072329,0.00030037,2]
[345465413,1734275440803,-500.0,0.00030037,2]
[345465415,1734275440813,-446.64717093,0.00030037,2]
[345465417,1734275440821,-500.0,0.00030037,2]
[345465419,1734275440831,-500.0,0.00030037,2]
[345465420,1734275440840,-500.0,0.00030037,2]
[345465422,1734275440849,-500.0,0.00030037,2]
[345465424,1734275440858,-500.0,0.00030037,2]
[345465426,1734275440867,-500.0,0.00030037,2]
[345465428,1734275440877,-500.0,0.00030037,2]
[345465430,1734275440886,-500.0,0.00030037,2]
[345465432,1734275440897,-500.0,0.00030037,2]
[345465434,1734275440906,-500.0,0.00030037,2]
[345465436,1734275440915,-500.0,0.00030037,2]
[345465438,1734275440924,-500.0,0.00030037,2]
[345465440,1734275440934,-500.0,0.00030037,2]
[345465442,1734275440944,-500.0,0.00030037,2]
[345465444,1734275440953,-224.01740298,0.00030037,2]
[345465446,1734275440968,-500.0,0.00030037,2]
[345465448,1734275440978,-548.14758045,0.00030037,2]
[345465450,1734275440987,-500.0,0.00030037,2]
[345465452,1734275440996,-500.0,0.00030037,2]
[345465454,1734275441006,-500.0,0.00030037,2]
[345465456,1734275441015,-500.0,0.00030037,2]
[345465458,1734275441025,-500.0,0.00030037,2]
[345465460,1734275441034,-500.0,0.00030037,2]
[345465463,1734275441044,-500.0,0.00030037,2]
[345465464,1734275441053,-500.0,0.00030037,2]
[345465466,1734275441062,-500.0,0.00030037,2]
[345465468,1734275441071,-500.0,0.00030037,2]
[345465470,1734275441081,-500.0,0.00030037,2]
[345465473,1734275441091,-500.0,0.00030037,2]
[345465475,1734275441100,-500.0,0.00030037,2]
[345465477,1734275441110,-500.0,0.00030037,2]
[345465479,1734275441119,-500.0,0.00030037,2]
[345465481,1734275441129,-500.0,0.00030037,2]
[345465483,1734275441138,-500.0,0.00030037,2]
[345465485,1734275441147,-500.0,0.00030037,2]
[345465487,1734275441157,-500.0,0.00030037,2]
[345465488,1734275441166,-500.0,0.00030037,2]
[345465490,1734275441175,-500.0,0.00030037,2]
[345465492,1734275441185,-500.0,0.00030037,2]
[345465494,1734275441194,-500.0,0.00030037,2]
[345465496,1734275441203,-500.0,0.00030037,2]
[345465498,1734275441212,-500.0,0.00030037,2]
[345465500,1734275441222,-500.0,0.00030037,2]
[345465502,1734275441231,-500.0,0.00030037,2]
[345465505,1734275441240,-500.0,0.00030037,2]